[Event "GAMMA Reykjavik Open 2019"]
[Site "Reykjavik"]
[Date "2019.04.14"]
[Round "7.26"]
[White "Borocz, Istvan"]
[Black "Maroroa, Sue"]
[Result "1-0"]
[ECO "E92"]
[WhiteElo "2350"]
[BlackElo "2128"]
[Annotator "NA"]
[PlyCount "77"]
[EventDate "2019.04.04"]
[EventType "swiss"]
[EventCountry "ISL"]
[SourceTitle "playchess.com"]
[Source "ChessBase"]
[SourceQuality "1"]
[TimeControl "40/5400+30:1800+30"]

1. d4 {[%emt 0:00:00]} Nf6 {[%emt 0:00:00]} 2. c4 {[%emt 0:01:09]} g6 {[%emt 0:00:00]} 3. Nc3 {[%emt 0:00:54]} Bg7 {[%emt 0:00:09]} 4. e4 {[%emt 0:00:07]} d6 {[%emt 0:00:12]} 5. Be2 {[%emt 0:00:13]} O-O {[%emt 0:00:57]} 6. Bg5 {[%emt 0:00:27]} h6 {[%emt 0:02:21]} 7. Be3 {[%emt 0:04:03]} e5 {[%emt 0:01:34]} 8. d5 {[%emt 0:03:31]} a5 {[%emt 0:06:42]} 9. Nf3 {[%emt 0:12:21]} Ng4 {[%emt 0:06:04]} 10. Bd2 {[%emt 0:03:06]} f5 {[%emt 0:04:42]} 11. Qc1 {[%emt 0:06:28]} Nxf2 {[%emt 0:06:31]} 12. Kxf2 {[%emt 0:06:36]} fxe4 {[%emt 0:00:11]} 13. Nxe4 {[%emt 0:01:05]} Qh4+ {[%emt 0:00:25]} 14. Ke3 {[%emt 0:01:30]} Qf4+ {[%emt 0:12:59]} 15. Kd3 {[%emt 0:01:46]} Qf7 {[%emt 0:04:08]} 16. Bxh6 {[%emt 0:23:29]} Bf5 {[%emt 0:02:07]} 17. Bxg7 {[%emt 0:00:46]} Bxe4+ {[%emt 0:02:02]} 18. Kxe4 {[%emt 0:00:22]} Qf5+ {[%emt 0:01:52]} 19. Ke3 {[%emt 0:00:09]} Kxg7 {[%emt 0:01:36]} 20. Bd3 {[%emt 0:15:10]} e4 {[%emt 0:03:54]} 21. Bxe4 {[%emt 0:00:06]} Re8 {[%emt 0:00:57]} 22. Qc3+ {[%emt 0:02:04]} Kg8 {[%emt 0:05:13]} 23. Kf2 {[%emt 0:03:20]} Rxe4 {[%emt 0:00:38]} 24. Rhe1 {[%emt 0:00:06]} Rxe1 {[%emt 0:01:29]} 25. Rxe1 {[%emt 0:00:03]} Nd7 {[%emt 0:00:04]} 26. Kg1 {[%emt 0:01:16]} Rf8 {[%emt 0:01:24]} 27. h3 {[%emt 0:01:34]} b6 {[%emt 0:08:38]} 28. Qe3 {[%emt 0:01:16]} Nc5 {[%emt 0:01:32]} 29. Qe7 {[%emt 0:04:22]} Nd3 {[%emt 0:02:11]} 30. Re3 {[%emt 0:03:24]} Ne5 {[%emt 0:10:28]} 31. Ng5 {[%emt 0:00:54]} Qf2+ {[%emt 0:00:32]} 32. Kh2 {[%emt 0:00:40]} Qf4+ {[%emt 0:01:55]} 33. Rg3 {[%emt 0:00:28]} Qh4 {[%emt 0:00:34]} 34. Qxc7 {[%emt 0:01:24]} Rf5 {[%emt 0:08:39]} 35. Qd8+ {[%emt 0:00:38]} Rf8 {[%emt 0:00:04]} 36. Qxd6 {[%emt 0:00:37]} Qf4 {[%emt 0:01:03]} 37. Qe7 {[%emt 0:01:25]} Rf6 {[%emt 0:01:20]} 38. Qh7+ {[%emt 0:01:14]} Kf8 {[%emt 0:00:17]} 39. Ne6+ {[%emt 0:00:16]} 1-0

[Event "GAMMA Reykjavik Open 2019"]
[Site "Reykjavik"]
[Date "2019.04.14"]
[Round "7.28"]
[White "Cornette, Matthieu"]
[Black "Ingvason, Johann"]
[Result "1-0"]
[ECO "C54"]
[WhiteElo "2556"]
[BlackElo "2181"]
[Annotator "RC"]
[PlyCount "147"]
[EventDate "2019.04.04"]
[EventType "swiss"]
[EventCountry "ISL"]
[SourceTitle "playchess.com"]
[Source "ChessBase"]
[SourceQuality "1"]
[TimeControl "40/5400+30:1800+30"]

1. e4 {[%emt 0:00:00]} e5 {[%emt 0:00:00]} 2. Nf3 {[%emt 0:00:00]} Nc6 {[%emt 0:00:00]} 3. Bc4 {[%emt 0:00:01]} Nf6 {[%emt 0:00:03]} 4. d3 {[%emt 0:00:04]} Bc5 {[%emt 0:02:34]} 5. O-O {[%emt 0:00:18]} d6 {[%emt 0:01:07]} 6. c3 {[%emt 0:00:17]} O-O {[%emt 0:01:23]} 7. b4 {[%emt 0:01:59]} Bb6 {[%emt 0:00:19]} 8. Bg5 {[%emt 0:00:21]} Be6 {[%emt 0:01:33]} 9. Nbd2 {[%emt 0:00:21]} a5 {[%emt 0:03:58]} 10. b5 {[%emt 0:02:53]} Nb8 {[%emt 0:00:48]} 11. d4 {[%emt 0:09:04]} Nbd7 {[%emt 0:12:08]} 12. Qc2 {[%emt 0:18:41]} Qe7 {[%emt 0:02:58]} 13. Rfe1 {[%emt 0:03:16]} h6 {[%emt 0:02:43]} 14. Bh4 {[%emt 0:01:15]} Qe8 {[%emt 0:11:20]} 15. h3 {[%emt 0:07:59]} Nh5 {[%emt 0:02:54]} 16. Kh1 {[%emt 0:08:42]} g5 {[%emt 0:05:26]} 17. Bg3 {[%emt 0:00:11]} f6 {[%emt 0:01:05]} 18. a4 {[%emt 0:05:10]} Kh8 {[%emt 0:03:35]} 19. Qa2 {[%emt 0:01:28]} Bg8 {[%emt 0:00:50]} 20. Nf1 {[%emt 0:00:48]} Qg6 {[%emt 0:00:58]} 21. Bxg8 {[%emt 0:03:33]} Rxg8 {[%emt 0:00:31]} 22. Qd5 {[%emt 0:00:20]} Rab8 {[%emt 0:01:01]} 23. Ne3 {[%emt 0:00:54]} Rgf8 {[%emt 0:05:27]} 24. Rad1 {[%emt 0:03:28]} Qf7 {[%emt 0:04:15]} 25. Qxf7 {[%emt 0:03:02]} Rxf7 {[%emt 0:00:01]} 26. Nf5 {[%emt 0:00:16]} Kh7 {[%emt 0:00:18]} 27. Nd2 {[%emt 0:00:10]} Ng7 {[%emt 0:00:26]} 28. Nxg7 {[%emt 0:00:40]} Kxg7 {[%emt 0:00:30]} 29. Nc4 {[%emt 0:00:01]} Rc8 {[%emt 0:01:41]} 30. f3 {[%emt 0:00:32]} Kf8 {[%emt 0:01:13]} 31. Re2 {[%emt 0:05:25]} Re7 {[%emt 0:02:06]} 32. Ne3 {[%emt 0:02:57]} Rh7 {[%emt 0:00:30]} 33. Bf2 {[%emt 0:00:38]} Rf7 {[%emt 0:03:37]} 34. Red2 {[%emt 0:03:57]} Kg7 {[%emt 0:04:15]} 35. g3 {[%emt 0:03:56]} Kg6 {[%emt 0:01:50]} 36. Kg2 {[%emt 0:00:49]} Nf8 {[%emt 0:00:49]} 37. Nc4 {[%emt 0:00:40]} Ne6 {[%emt 0:08:02]} 38. d5 {[%emt 0:05:00]} Nc5 {[%emt 0:12:06]} 39. Bxc5 {[%emt 0:00:05]} Bxc5 {[%emt 0:00:03]} 40. Nxa5 {[%emt 0:00:00]} Ra8 {[%emt 0:00:00]} 41. Nxb7 {[%emt 0:00:13]} Rxa4 {[%emt 0:06:04]} 42. Nxc5 {[%emt 0:02:26]} dxc5 {[%emt 0:00:01]} 43. g4 {[%emt 0:05:52]} Ra3 {[%emt 0:03:18]} 44. Rc2 {[%emt 0:01:05]} Rf8 {[%emt 0:00:16]} 45. d6 {[%emt 0:01:19]} cxd6 {[%emt 0:00:26]} 46. Rxd6 {[%emt 0:00:06]} c4 {[%emt 0:06:08]} 47. Rc6 {[%emt 0:03:28]} Rb8 {[%emt 0:00:09]} 48. b6 {[%emt 0:01:17]} Rb3 {[%emt 0:00:11]} 49. Rxc4 {[%emt 0:02:31]} R8xb6 {[%emt 0:00:02]} 50. Rc7 {[%emt 0:01:23]} Ra3 {[%emt 0:08:39]} 51. Rd2 {[%emt 0:03:16]} Rb1 {[%emt 0:00:28]} 52. Kg3 {[%emt 0:09:14]} Rg1+ {[%emt 0:00:39]} 53. Kf2 {[%emt 0:00:08]} Rc1 {[%emt 0:00:10]} 54. Rdd7 {[%emt 0:00:55]} Ra2+ {[%emt 0:00:05]} 55. Ke3 {[%emt 0:00:04]} Re1+ {[%emt 0:00:04]} 56. Kd3 {[%emt 0:00:02]} Rd1+ {[%emt 0:00:05]} 57. Kc4 {[%emt 0:00:04]} Rxd7 {[%emt 0:00:04]} 58. Rxd7 {[%emt 0:00:07]} Rh2 {[%emt 0:02:18]} 59. Rd3 {[%emt 0:04:14]} Rxh3 {[%emt 0:00:03]} 60. Kd5 {[%emt 0:00:17]} Kf7 {[%emt 0:00:46]} 61. c4 {[%emt 0:01:50]} h5 {[%emt 0:00:29]} 62. Rd1 {[%emt 0:00:25]} hxg4 {[%emt 0:01:24]} 63. fxg4 {[%emt 0:00:07]} Rg3 {[%emt 0:01:27]} 64. c5 {[%emt 0:00:30]} Ke7 {[%emt 0:04:48]} 65. c6 {[%emt 0:00:37]} Rxg4 {[%emt 0:04:18]} 66. Ra1 {[%emt 0:00:06]} Rg2 {[%emt 0:00:17]} 67. Ra7+ {[%emt 0:00:29]} Kd8 {[%emt 0:00:12]} 68. Rf7 {[%emt 0:02:15]} Rd2+ {[%emt 0:00:06]} 69. Ke6 {[%emt 0:00:27]} Rc2 {[%emt 0:01:51]} 70. c7+ {[%emt 0:06:16]} Kc8 {[%emt 0:00:06]} 71. Rxf6 {[%emt 0:00:26]} Rc6+ {[%emt 0:01:07]} 72. Kxe5 {[%emt 0:00:05]} Rxf6 {[%emt 0:00:09]} 73. Kxf6 {[%emt 0:00:02]} g4 {[%emt 0:00:05]} 74. e5 {[%emt 0:00:05]} 1-0

[Event "GAMMA Reykjavik Open 2019"]
[Site "Reykjavik"]
[Date "2019.04.14"]
[Round "7.29"]
[White "Saduakassova, Dinara"]
[Black "Gantar, Jan"]
[Result "1-0"]
[ECO "C10"]
[WhiteElo "2461"]
[BlackElo "2172"]
[Annotator "RC"]
[PlyCount "53"]
[EventDate "2019.04.04"]
[EventType "swiss"]
[EventCountry "ISL"]
[SourceTitle "playchess.com"]
[Source "ChessBase"]
[SourceQuality "1"]
[TimeControl "40/5400+30:1800+30"]

1. e4 {[%emt 0:00:00]} e6 {[%emt 0:00:00]} 2. d4 {[%emt 0:00:00]} d5 {[%emt 0:00:00]} 3. Nd2 {[%emt 0:00:00]} dxe4 {[%emt 0:00:14]} 4. Nxe4 {[%emt 0:00:04]} Bd7 {[%emt 0:00:10]} 5. Nf3 {[%emt 0:03:12]} Bc6 {[%emt 0:00:45]} 6. Bd3 {[%emt 0:00:43]} Nd7 {[%emt 0:00:30]} 7. c3 {[%emt 0:04:20]} Ngf6 {[%emt 0:00:41]} 8. Nxf6+ {[%emt 0:01:10]} Qxf6 {[%emt 0:04:19]} 9. Bg5 {[%emt 0:02:12]} Bxf3 {[%emt 0:01:21]} 10. Qd2 {[%emt 0:00:03]} Bxg2 {[%emt 0:00:09]} 11. Bxf6 {[%emt 0:00:09]} Bxh1 {[%emt 0:00:08]} 12. Bh4 {[%emt 0:00:19]} Bc6 {[%emt 0:05:10]} 13. O-O-O {[%emt 0:02:03]} Be7 {[%emt 0:21:35]} 14. Bxe7 {[%emt 0:03:13]} Kxe7 {[%emt 0:00:07]} 15. Qg5+ {[%emt 0:02:13]} Kf8 {[%emt 0:01:03]} 16. c4 {[%emt 0:03:06]} Nf6 {[%emt 0:00:35]} 17. Rg1 {[%emt 0:02:02]} Rg8 {[%emt 0:00:10]} 18. Qc5+ {[%emt 0:00:22]} Ke8 {[%emt 0:00:28]} 19. d5 {[%emt 0:06:10]} Bd7 {[%emt 0:01:39]} 20. dxe6 {[%emt 0:01:02]} Bxe6 {[%emt 0:00:47]} 21. Qxc7 {[%emt 0:01:25]} Nd7 {[%emt 0:01:53]} 22. f4 {[%emt 0:04:34]} f5 {[%emt 0:02:00]} 23. Re1 {[%emt 0:00:52]} Kf7 {[%emt 0:00:07]} 24. Qd6 {[%emt 0:00:19]} Nf8 {[%emt 0:01:30]} 25. Bxf5 {[%emt 0:00:28]} Re8 {[%emt 0:00:07]} 26. Bxe6+ {[%emt 0:00:54]} Nxe6 {[%emt 0:00:18]} 27. f5 {[%emt 0:00:11]} 1-0

[Event "GAMMA Reykjavik Open 2019"]
[Site "Reykjavik"]
[Date "2019.04.14"]
[Round "7.31"]
[White "Kreckovic, Milos"]
[Black "Astaneh Lopez, Alex"]
[Result "0-1"]
[ECO "E49"]
[WhiteElo "2168"]
[BlackElo "2427"]
[Annotator "NA"]
[PlyCount "76"]
[EventDate "2019.04.04"]
[EventType "swiss"]
[EventCountry "ISL"]
[SourceTitle "playchess.com"]
[Source "ChessBase"]
[SourceQuality "1"]
[TimeControl "40/5400+30:1800+30"]

1. d4 {[%emt 0:02:07]} Nf6 {[%emt 0:04:48]} 2. c4 {[%emt 0:06:26]} e6 {[%emt 0:00:49]} 3. Nc3 {[%emt 0:00:08]} Bb4 {[%emt 0:00:07]} 4. a3 {[%emt 0:00:28]} Bxc3+ {[%emt 0:00:07]} 5. bxc3 {[%emt 0:00:04]} O-O {[%emt 0:00:28]} 6. f3 {[%emt 0:01:53]} d5 {[%emt 0:01:43]} 7. e3 {[%emt 0:00:07]} c5 {[%emt 0:00:52]} 8. cxd5 {[%emt 0:00:13]} exd5 {[%emt 0:00:21]} 9. Bd3 {[%emt 0:00:07]} b6 {[%emt 0:00:55]} 10. Ne2 {[%emt 0:00:35]} Ba6 {[%emt 0:00:06]} 11. Bxa6 {[%emt 0:00:18]} Nxa6 {[%emt 0:00:06]} 12. O-O {[%emt 0:00:07]} Qd7 {[%emt 0:01:01]} 13. Qd3 {[%emt 0:07:22]} Qb7 {[%emt 0:07:01]} 14. g4 {[%emt 0:04:11]} Rfe8 {[%emt 0:01:07]} 15. Ng3 {[%emt 0:04:20]} Rad8 {[%emt 0:02:03]} 16. Ra2 {[%emt 0:01:02]} Nc7 {[%emt 0:00:45]} 17. Rg2 {[%emt 0:10:41]} Qa6 {[%emt 0:00:18]} 18. Qf5 {[%emt 0:02:01]} Nb5 $14 {[%emt 0:02:57]} (18... Qc4 $15) 19. Qg5 {[%emt 0:17:04]} h6 {[%emt 0:00:47]} 20. Qh4 {[%emt 0:00:03]} Nh7 {[%emt 0:00:06]} 21. e4 {[%emt 0:07:45]} Nxc3 {[%emt 0:07:44]} 22. g5 {[%emt 0:05:41]} hxg5 {[%emt 0:20:30]} 23. Bxg5 {[%emt 0:00:15]} Nxg5 {[%emt 0:00:05]} 24. Qxg5 {[%emt 0:00:41]} Rd6 {[%emt 0:02:37]} 25. Nf5 {[%emt 0:08:16]} Rg6 {[%emt 0:00:24]} 26. Ne7+ {[%emt 0:00:07]} Rxe7 {[%emt 0:00:03]} 27. Qxe7 {[%emt 0:00:05]} Ne2+ {[%emt 0:00:07]} 28. Kf2 {[%emt 0:00:22]} Rxg2+ {[%emt 0:06:33]} 29. Kxg2 {[%emt 0:00:03]} Nf4+ {[%emt 0:00:04]} 30. Kg3 {[%emt 0:05:24]} Qxf1 {[%emt 0:00:10]} 31. Kxf4 {[%emt 0:00:03]} Qc1+ {[%emt 0:06:55]} 32. Ke5 {[%emt 0:00:25]} dxe4 {[%emt 0:02:35]} 33. Qd8+ {[%emt 0:14:16]} Kh7 {[%emt 0:00:06]} 34. Qh4+ {[%emt 0:00:03]} Qh6 {[%emt 0:00:49]} 35. Qxe4+ {[%emt 0:00:02]} g6 {[%emt 0:02:01]} 36. d5 {[%emt 0:03:49]} Qxh2+ {[%emt 0:00:18]} 37. Kf6 {[%emt 0:01:18]} Qc7 {[%emt 0:00:09]} 38. Qh4+ {[%emt 0:00:35]} Kg8 {[%emt 0:00:15]} 0-1

[Event "GAMMA Reykjavik Open 2019"]
[Site "Reykjavik"]
[Date "2019.04.15"]
[Round "8.17"]
[White "Christiansen, Johan-Sebastian"]
[Black "Van de Plassche, Bas"]
[Result "1-0"]
[ECO "A34"]
[WhiteElo "2571"]
[BlackElo "2376"]
[Annotator "ChessBase"]
[PlyCount "21"]
[EventDate "2019.04.04"]
[EventType "swiss"]
[EventCountry "ISL"]
[SourceTitle "playchess.com"]
[Source "ChessBase"]
[SourceQuality "1"]
[TimeControl "40/5400+30:1800+30"]

1. Nf3 {[%emt 0:00:48]} c5 {[%emt 0:00:11]} 2. c4 {[%emt 0:01:09]} Nc6 {[%emt 0:00:00]} 3. Nc3 {[%emt 0:01:01]} e5 {[%emt 0:00:01]} 4. e3 {[%emt 0:03:05]} Nf6 {[%emt 0:01:09]} 5. d4 {[%emt 0:01:24]} cxd4 {[%emt 0:00:51]} 6. exd4 {[%emt 0:00:06]} e4 {[%emt 0:00:04]} 7. Ne5 {[%emt 0:01:09]} Bb4 {[%emt 0:00:26]} 8. Be2 {[%emt 0:00:45]} Qa5 {[%emt 0:00:57]} 9. O-O {[%emt 0:01:26]} Nxe5 {[%emt 0:02:34]} 10. dxe5 {[%emt 0:00:03]} Qxe5 {[%emt 0:00:08]} 11. Bd2 {[%emt 0:00:50]} 1-0

[Event "GAMMA Reykjavik Open 2019"]
[Site "Reykjavik"]
[Date "2019.04.15"]
[Round "8.24"]
[White "Astaneh Lopez, Alex"]
[Black "Einarsson, Halldor Gretar"]
[Result "1-0"]
[ECO "A49"]
[WhiteElo "2427"]
[BlackElo "2279"]
[Annotator "NA"]
[PlyCount "47"]
[EventDate "2019.04.04"]
[EventType "swiss"]
[EventCountry "ISL"]
[SourceTitle "playchess.com"]
[Source "ChessBase"]
[SourceQuality "1"]
[TimeControl "40/5400+30:1800+30"]

1. Nf3 {[%emt 0:05:38]} Nf6 {[%emt 0:00:21]} 2. g3 {[%emt 0:00:10]} g6 {[%emt 0:00:27]} 3. b3 {[%emt 0:00:04]} Bg7 {[%emt 0:01:18]} 4. Bb2 {[%emt 0:00:05]} O-O {[%emt 0:00:58]} 5. Bg2 {[%emt 0:00:31]} d6 {[%emt 0:01:56]} 6. d4 {[%emt 0:00:07]} c6 {[%emt 0:04:09]} 7. O-O {[%emt 0:01:48]} Nbd7 {[%emt 0:00:35]} 8. Re1 {[%emt 0:11:54]} Qc7 {[%emt 0:14:58]} 9. e4 {[%emt 0:01:18]} Rd8 {[%emt 0:00:40]} 10. a4 {[%emt 0:04:55]} e5 {[%emt 0:07:19]} 11. Nbd2 {[%emt 0:02:09]} exd4 {[%emt 0:04:17]} 12. Nxd4 {[%emt 0:00:19]} Nf8 {[%emt 0:05:01]} 13. Qf3 {[%emt 0:05:53]} Bg4 {[%emt 0:22:57]} 14. Qf4 {[%emt 0:01:40]} Qd7 {[%emt 0:00:46]} 15. Nc4 {[%emt 0:00:29]} Ne6 {[%emt 0:07:10]} 16. Nxe6 {[%emt 0:01:58]} Qxe6 {[%emt 0:00:39]} 17. h3 {[%emt 0:01:10]} Bh5 {[%emt 0:03:49]} 18. g4 {[%emt 0:01:18]} b5 {[%emt 0:01:22]} 19. axb5 {[%emt 0:01:15]} cxb5 {[%emt 0:00:08]} 20. e5 {[%emt 0:00:57]} Nd5 {[%emt 0:02:03]} 21. Bxd5 {[%emt 0:00:16]} Qxd5 {[%emt 0:00:06]} 22. Ne3 {[%emt 0:00:05]} dxe5 {[%emt 0:00:48]} 23. Nxd5 {[%emt 0:00:05]} exf4 {[%emt 0:00:12]} 24. Nf6+ {[%emt 0:01:31]} 1-0

[Event "GAMMA Reykjavik Open 2019"]
[Site "Reykjavik"]
[Date "2019.04.16"]
[Round "9.1"]
[White "Parligras, Mircea-Emilian"]
[Black "Lupulescu, Constantin"]
[Result "1/2-1/2"]
[ECO "D38"]
[WhiteElo "2633"]
[BlackElo "2634"]
[Annotator "RC"]
[PlyCount "61"]
[EventDate "2019.04.04"]
[EventType "swiss"]
[EventCountry "ISL"]
[SourceTitle "playchess.com"]
[Source "ChessBase"]
[SourceQuality "1"]
[TimeControl "40/5400+30:1800+30"]

1. c4 {[%emt 0:00:00]} Nf6 {[%emt 0:00:00]} 2. Nf3 {[%emt 0:00:02]} e6 {[%emt 0:00:00]} 3. Nc3 {[%emt 0:00:21]} d5 {[%emt 0:00:08]} 4. d4 {[%emt 0:01:22]} Bb4 {[%emt 0:01:09]} 5. Bg5 {[%emt 0:00:38]} h6 {[%emt 0:00:36]} 6. Bxf6 {[%emt 0:00:08]} Qxf6 {[%emt 0:00:03]} 7. e3 {[%emt 0:00:26]} O-O {[%emt 0:01:10]} 8. Rc1 {[%emt 0:02:29]} dxc4 {[%emt 0:00:47]} 9. Bxc4 {[%emt 0:00:18]} c5 {[%emt 0:00:15]} 10. O-O {[%emt 0:03:51]} cxd4 {[%emt 0:01:21]} 11. Nxd4 {[%emt 0:02:58]} Bd7 {[%emt 0:01:57]} 12. Ne4 {[%emt 0:03:28]} Qe7 {[%emt 0:00:33]} 13. Be2 {[%emt 0:05:33]} Nc6 {[%emt 0:02:17]} 14. a3 {[%emt 0:03:27]} Nxd4 {[%emt 0:03:10]} 15. Qxd4 {[%emt 0:00:17]} Ba5 {[%emt 0:00:06]} 16. Qc5 {[%emt 0:04:45]} Qxc5 {[%emt 0:01:51]} 17. Nxc5 {[%emt 0:03:29]} Bc6 {[%emt 0:00:23]} 18. b4 {[%emt 0:01:07]} Bb6 {[%emt 0:01:08]} 19. Bf3 {[%emt 0:01:23]} Bxf3 {[%emt 0:05:23]} 20. gxf3 {[%emt 0:00:14]} Bxc5 {[%emt 0:00:12]} 21. Rxc5 {[%emt 0:00:24]} Rfc8 {[%emt 0:01:03]} 22. Rfc1 {[%emt 0:00:41]} Rxc5 {[%emt 0:00:36]} 23. Rxc5 {[%emt 0:00:10]} Rd8 {[%emt 0:01:58]} 24. Rc7 {[%emt 0:00:54]} Rd1+ {[%emt 0:00:56]} 25. Kg2 {[%emt 0:00:07]} Ra1 {[%emt 0:00:04]} 26. Rxb7 {[%emt 0:00:14]} Rxa3 {[%emt 0:00:05]} 27. f4 {[%emt 0:00:28]} a5 {[%emt 0:02:19]} 28. bxa5 {[%emt 0:00:59]} Rxa5 {[%emt 0:00:09]} 29. Rb8+ {[%emt 0:00:06]} Kh7 {[%emt 0:00:08]} 30. Rb7 {[%emt 0:00:05]} Kg6 {[%emt 0:00:12]} 31. h3 {[%emt 0:00:09]} 1/2-1/2

[Event "GAMMA Reykjavik Open 2019"]
[Site "Reykjavik"]
[Date "2019.04.16"]
[Round "9.5"]
[White "Salomon, Johan"]
[Black "Hovhannisyan, Robert"]
[Result "1/2-1/2"]
[ECO "A07"]
[WhiteElo "2495"]
[BlackElo "2630"]
[Annotator "RC"]
[PlyCount "157"]
[EventDate "2019.04.04"]
[EventType "swiss"]
[EventCountry "ISL"]
[SourceTitle "playchess.com"]
[Source "ChessBase"]
[SourceQuality "1"]
[TimeControl "40/5400+30:1800+30"]

1. Nf3 {[%emt 0:00:00]} d5 {[%emt 0:00:00]} 2. g3 {[%emt 0:00:00]} Bg4 {[%emt 0:01:34]} 3. Bg2 {[%emt 0:00:00]} e6 {[%emt 0:00:04]} 4. h3 {[%emt 0:00:00]} Bh5 {[%emt 0:00:40]} 5. d4 {[%emt 0:00:02]} Nf6 {[%emt 0:00:31]} 6. O-O {[%emt 0:00:31]} Be7 {[%emt 0:00:45]} 7. c4 {[%emt 0:00:10]} c6 {[%emt 0:00:39]} 8. Ne5 {[%emt 0:00:11]} Nfd7 {[%emt 0:10:54]} 9. Nd3 {[%emt 0:07:36]} Bg6 {[%emt 0:03:47]} 10. Nc3 {[%emt 0:02:14]} dxc4 {[%emt 0:04:55]} 11. Nf4 {[%emt 0:00:08]} O-O {[%emt 0:00:54]} 12. h4 {[%emt 0:02:56]} e5 {[%emt 0:01:34]} 13. dxe5 {[%emt 0:00:05]} Nxe5 {[%emt 0:01:29]} 14. Nxg6 {[%emt 0:00:04]} hxg6 {[%emt 0:02:21]} 15. Qc2 {[%emt 0:00:02]} Na6 {[%emt 0:03:05]} 16. Bf4 {[%emt 0:07:29]} Qa5 {[%emt 0:02:37]} 17. Qe4 {[%emt 0:03:50]} Bf6 {[%emt 0:01:25]} 18. Bxe5 {[%emt 0:01:09]} Bxe5 {[%emt 0:03:06]} 19. Qxc4 {[%emt 0:00:27]} Rad8 {[%emt 0:03:31]} 20. Rfd1 {[%emt 0:06:43]} Qc5 {[%emt 0:09:14]} 21. Qxc5 {[%emt 0:15:56]} Nxc5 {[%emt 0:00:05]} 22. Rxd8 {[%emt 0:01:00]} Rxd8 {[%emt 0:00:04]} 23. Rd1 {[%emt 0:00:07]} Rxd1+ {[%emt 0:09:06]} 24. Nxd1 {[%emt 0:00:13]} a5 {[%emt 0:02:40]} 25. Kf1 {[%emt 0:00:51]} a4 {[%emt 0:06:48]} 26. Ke1 {[%emt 0:02:35]} Kf8 {[%emt 0:01:11]} 27. Kd2 {[%emt 0:03:33]} Ke7 {[%emt 0:00:45]} 28. Kc2 {[%emt 0:01:25]} Na6 {[%emt 0:01:14]} 29. a3 {[%emt 0:04:07]} Nc5 {[%emt 0:04:30]} 30. Bf3 {[%emt 0:03:14]} Kd7 {[%emt 0:01:21]} 31. e3 {[%emt 0:03:16]} b5 {[%emt 0:01:01]} 32. Bg4+ {[%emt 0:03:20]} f5 {[%emt 0:03:25]} 33. Bh3 {[%emt 0:06:20]} Ke6 {[%emt 0:02:50]} 34. f4 {[%emt 0:05:40]} Bf6 {[%emt 0:02:45]} 35. Nf2 {[%emt 0:00:38]} Nb3 {[%emt 0:01:35]} 36. Bg2 {[%emt 0:04:25]} Na5 {[%emt 0:03:24]} 37. e4 {[%emt 0:07:55]} Nc4 {[%emt 0:05:34]} 38. exf5+ {[%emt 0:00:09]} gxf5 {[%emt 0:00:14]} 39. Bxc6 {[%emt 0:01:15]} Bxb2 {[%emt 0:00:35]} 40. Bxb5 {[%emt 0:00:00]} Nxa3+ {[%emt 0:00:00]} 41. Kxb2 {[%emt 0:06:38]} Nxb5 {[%emt 0:00:21]} 42. h5 {[%emt 0:01:00]} Nd6 {[%emt 0:01:27]} 43. g4 {[%emt 0:01:41]} Ne4 {[%emt 0:00:36]} 44. gxf5+ {[%emt 0:00:24]} Kxf5 {[%emt 0:00:11]} 45. Nd3 {[%emt 0:02:45]} Nf6 {[%emt 0:00:49]} 46. Ka3 {[%emt 0:00:54]} Nxh5 {[%emt 0:00:21]} 47. Kxa4 {[%emt 0:00:04]} Ke4 {[%emt 0:15:01]} 48. Nc5+ {[%emt 0:02:11]} Kd5 {[%emt 0:00:12]} 49. Nd3 {[%emt 0:00:05]} Kd4 {[%emt 0:00:24]} 50. Ne5 {[%emt 0:00:48]} Nxf4 {[%emt 0:00:12]} 51. Nf7 {[%emt 0:01:30]} Kc4 {[%emt 0:02:54]} 52. Ng5 {[%emt 0:03:11]} Nd3 {[%emt 0:03:30]} 53. Ka3 {[%emt 0:00:40]} g6 {[%emt 0:00:46]} 54. Ka2 {[%emt 0:00:40]} Kc3 {[%emt 0:00:44]} 55. Kb1 {[%emt 0:00:45]} Kd2 {[%emt 0:00:14]} 56. Nf7 {[%emt 0:00:48]} Ne1 {[%emt 0:02:12]} 57. Ng5 {[%emt 0:01:19]} Nc2 {[%emt 0:01:47]} 58. Nf3+ {[%emt 0:03:15]} Kd1 {[%emt 0:00:28]} 59. Kb2 {[%emt 0:00:37]} Ne1 {[%emt 0:00:32]} 60. Ng5 {[%emt 0:00:43]} Kd2 {[%emt 0:00:13]} 61. Kb3 {[%emt 0:00:40]} Kd3 {[%emt 0:00:47]} 62. Kb2 {[%emt 0:00:25]} Kd2 {[%emt 0:00:16]} 63. Kb3 {[%emt 0:00:11]} Ke3 {[%emt 0:00:14]} 64. Kc3 {[%emt 0:00:25]} Nf3 {[%emt 0:00:32]} 65. Nf7 {[%emt 0:00:23]} Ke4 {[%emt 0:00:57]} 66. Kc2 {[%emt 0:07:07]} Ne5 {[%emt 0:00:24]} 67. Nd6+ {[%emt 0:00:49]} Kf4 {[%emt 0:01:47]} 68. Kd2 {[%emt 0:01:17]} g5 {[%emt 0:00:07]} 69. Ke2 {[%emt 0:00:41]} g4 {[%emt 0:00:14]} 70. Ne8 {[%emt 0:01:36]} Kg5 {[%emt 0:01:59]} 71. Nd6 {[%emt 0:01:52]} Kf4 {[%emt 0:00:19]} 72. Ne8 {[%emt 0:00:05]} Kg5 {[%emt 0:00:48]} 73. Nd6 {[%emt 0:00:05]} Nd7 {[%emt 0:02:18]} 74. Ne4+ {[%emt 0:03:53]} Kf4 {[%emt 0:00:20]} 75. Nf2 {[%emt 0:00:09]} g3 {[%emt 0:00:05]} 76. Nh3+ {[%emt 0:00:31]} Kg4 {[%emt 0:00:28]} 77. Nf2+ {[%emt 0:00:04]} Kh4 {[%emt 0:00:08]} 78. Kf1 {[%emt 0:00:36]} Nf6 {[%emt 0:00:52]} 79. Nh1 {[%emt 0:00:13]} 1/2-1/2

[Event "GAMMA Reykjavik Open 2019"]
[Site "Reykjavik"]
[Date "2019.04.16"]
[Round "9.9"]
[White "Kjartansson, Gudmundur"]
[Black "Stefansson, Hannes"]
[Result "0-1"]
[ECO "D78"]
[WhiteElo "2444"]
[BlackElo "2558"]
[Annotator "ChessBase"]
[PlyCount "60"]
[EventDate "2019.04.04"]
[EventType "swiss"]
[EventCountry "ISL"]
[SourceTitle "playchess.com"]
[Source "ChessBase"]
[SourceQuality "1"]
[TimeControl "40/5400+30:1800+30"]

1. Nf3 {[%emt 0:00:00]} d5 {[%emt 0:00:00]} 2. c4 {[%emt 0:00:07]} c6 {[%emt 0:00:28]} 3. g3 {[%emt 0:00:18]} g6 {[%emt 0:00:25]} 4. Bg2 {[%emt 0:01:23]} Bg7 {[%emt 0:00:19]} 5. d4 {[%emt 0:00:59]} Nf6 {[%emt 0:01:00]} 6. O-O {[%emt 0:00:06]} O-O {[%emt 0:00:14]} 7. Qb3 {[%emt 0:03:06]} Qb6 {[%emt 0:00:52]} 8. Nc3 {[%emt 0:02:28]} Rd8 {[%emt 0:01:06]} 9. Be3 {[%emt 0:18:24]} Be6 {[%emt 0:15:20]} 10. c5 {[%emt 0:06:48]} Qc7 {[%emt 0:02:31]} 11. Bf4 {[%emt 0:03:21]} Qc8 {[%emt 0:00:06]} 12. Ng5 {[%emt 0:12:18]} Bd7 {[%emt 0:03:37]} 13. e4 {[%emt 0:02:42]} h6 {[%emt 0:00:36]} 14. Nxd5 {[%emt 0:01:02]} cxd5 {[%emt 0:05:32]} 15. Nxf7 {[%emt 0:00:11]} Kxf7 {[%emt 0:00:22]} 16. exd5 {[%emt 0:00:09]} e6 {[%emt 0:03:45]} 17. dxe6+ {[%emt 0:22:10]} Bxe6 {[%emt 0:00:46]} 18. Qxb7+ {[%emt 0:01:59]} Qxb7 {[%emt 0:00:05]} 19. Bxb7 {[%emt 0:00:03]} Bd5 {[%emt 0:00:38]} 20. Bxa8 {[%emt 0:00:29]} Bxa8 {[%emt 0:00:06]} 21. Be3 {[%emt 0:07:36]} Nc6 {[%emt 0:03:26]} 22. Rfd1 {[%emt 0:00:07]} Nd5 {[%emt 0:00:55]} 23. a3 {[%emt 0:00:35]} a5 {[%emt 0:01:19]} 24. Rac1 {[%emt 0:01:43]} Rb8 {[%emt 0:02:49]} 25. Rc2 {[%emt 0:00:15]} Rb3 {[%emt 0:00:26]} 26. Re2 {[%emt 0:00:03]} Bb7 {[%emt 0:00:34]} 27. Rdd2 {[%emt 0:01:05]} Nce7 {[%emt 0:00:49]} 28. g4 {[%emt 0:02:32]} g5 {[%emt 0:00:32]} 29. h3 {[%emt 0:00:16]} Bc6 {[%emt 0:00:37]} 30. Re1 {[%emt 0:01:25]} Ng6 {[%emt 0:00:33]} 0-1